bitfinex/quotes_BTCUSD_20240929
["timestamp","ask_amount","ask_price","bid_price","bid_amount"]
[1727576351405,0.000828,66018.0,66017.0,1.27545738]
[1727576351613,0.000828,66018.0,66017.0,1.27745738]
[1727576351829,0.000828,66018.0,66017.0,1.48797674]
[1727576352071,0.000828,66018.0,66017.0,1.56707674]
[1727576352319,0.000828,66018.0,66017.0,1.45385738]
[1727576353078,0.000828,66018.0,66017.0,1.42585738]
[1727576353305,0.000828,66018.0,66017.0,1.43785738]
[1727576353528,0.000828,66018.0,66017.0,1.42585738]
[1727576353935,0.000828,66018.0,66017.0,1.43985738]
[1727576354404,0.000828,66018.0,66017.0,1.43785738]
[1727576354643,0.000828,66018.0,66017.0,1.45385738]
[1727576354869,0.000828,66018.0,66017.0,1.43798359]
[1727576355325,0.000828,66018.0,66017.0,1.42398359]
[1727576355776,0.000828,66018.0,66017.0,1.43798359]
[1727576356220,0.000828,66018.0,66017.0,1.57363089]
[1727576359423,0.000828,66018.0,66017.0,1.57398531]
[1727576359661,0.000828,66018.0,66017.0,1.58976483]
[1727576360302,0.000828,66018.0,66017.0,1.45376311]
[1727576361342,0.000828,66018.0,66017.0,1.58976483]
[1727576361773,0.000828,66018.0,66017.0,1.45376311]
[1727576362540,0.000828,66018.0,66017.0,1.58976483]
[1727576362957,0.000828,66018.0,66017.0,1.45376311]
[1727576363362,0.000828,66018.0,66017.0,1.58976185]
[1727576366026,0.000828,66018.0,66017.0,1.58974125]
[1727576368600,0.000828,66018.0,66017.0,1.63766078]
[1727576370560,0.000828,66018.0,66017.0,1.58974125]
[1727576371622,0.000828,66018.0,66017.0,1.589688]
[1727576374400,0.000828,66021.0,66020.0,0.10425897]
[1727576374601,0.000828,66021.0,66020.0,1.35366989]
[1727576374832,0.000828,66021.0,66020.0,1.35848749]
[1727576375019,0.000828,66021.0,66020.0,1.22260104]
[1727576375448,0.000828,66021.0,66020.0,1.35847517]
[1727576375670,0.000828,66021.0,66020.0,1.47247517]
[1727576376125,0.000828,66021.0,66020.0,1.33660104]
[1727576376543,0.000828,66021.0,66020.0,1.48645853]
[1727576377431,0.22690658,66035.0,66034.0,0.151437]
[1727576377664,0.22690658,66035.0,66034.0,0.9209605]
[1727576377908,0.22690658,66035.0,66034.0,0.9513655]
[1727576378165,0.0775,66041.0,66036.0,0.151432]
[1727576378397,0.0775,66046.0,66036.0,0.8142698]
[1727576378625,0.1714,66046.0,66036.0,0.87331403]
[1727576378848,0.1714,66046.0,66036.0,0.941227]
[1727576379318,0.22690658,66043.0,66036.0,0.943227]
[1727576379543,0.1714,66046.0,66036.0,0.92056323]
[1727576379756,0.1714,66046.0,66036.0,0.91856323]
[1727576380179,0.1714,66046.0,66036.0,0.93256323]
[1727576381088,0.1714,66046.0,66036.0,0.94656323]
[1727576381323,0.0021271,66050.0,66036.0,0.94656323]
[1727576381324,0.0960271,66050.0,66036.0,0.94656323]
[1727576382448,0.0960271,66050.0,66036.0,0.90131403]
[1727576382686,0.0960271,66050.0,66036.0,0.94656323]
[1727576382909,0.0960271,66050.0,66036.0,1.22251429]
[1727576383599,0.0960271,66050.0,66036.0,1.22451429]
[1727576383808,0.0960271,66050.0,66036.0,1.13396366]
[1727576384025,0.0960271,66050.0,66036.0,1.20177179]
[1727576384444,0.0960271,66050.0,66036.0,1.13196366]
[1727576384664,0.0960271,66050.0,66036.0,1.19975362]
[1727576384880,0.0960271,66050.0,66036.0,1.13196366]
[1727576385551,0.0960271,66050.0,66036.0,1.19974143]
[1727576386706,0.0960271,66050.0,66036.0,1.19928343]
[1727576387129,0.0960271,66050.0,66036.0,1.199119]
[1727576387554,0.0960271,66050.0,66036.0,0.96907812]
[1727576387766,0.0960271,66050.0,66036.0,0.94648521]
[1727576387976,0.0960271,66050.0,66036.0,0.90131403]
[1727576388186,0.0960271,66050.0,66036.0,0.96907812]
[1727576388456,0.0960271,66050.0,66036.0,0.90131403]
[1727576388673,0.0960271,66050.0,66036.0,0.90331403]
[1727576388883,0.0960271,66050.0,66036.0,0.97107812]
[1727576389087,0.0960271,66050.0,66036.0,0.90331403]
[1727576389706,0.0960271,66050.0,66036.0,0.94646919]
[1727576390123,0.0960271,66050.0,66036.0,0.90331403]
[1727576390350,0.0960271,66050.0,66036.0,0.94846864]
[1727576390550,0.0960271,66050.0,66036.0,0.94846275]
[1727576390968,0.0960271,66050.0,66036.0,0.90331403]
[1727576391388,0.0960271,66050.0,66036.0,0.90131403]
[1727576393371,0.0960271,66050.0,66036.0,0.88931403]
[1727576393551,0.0960271,66050.0,66036.0,0.87531403]
[1727576394227,0.0960271,66050.0,66036.0,0.88631403]
[1727576394471,0.0960271,66050.0,66036.0,0.87331403]
[1727576394922,0.0960271,66050.0,66036.0,0.88631403]
[1727576395142,0.0960271,66050.0,66036.0,0.93146493]
[1727576395367,0.0021271,66050.0,66036.0,0.87531403]
[1727576395816,0.0021271,66050.0,66036.0,1.18928577]
[1727576396112,0.0021271,66050.0,66036.0,1.20028577]
[1727576396321,0.0021271,66050.0,66036.0,1.18925346]
[1727576396536,0.0021271,66050.0,66036.0,0.95400793]
[1727576396760,0.0021271,66050.0,66036.0,0.87531403]
[1727576397179,0.0021271,66050.0,66036.0,0.94300793]
[1727576397399,0.0021271,66050.0,66036.0,0.95700793]
[1727576397608,0.0021271,66050.0,66036.0,0.87531403]
[1727576398093,0.0021271,66050.0,66036.0,0.90231403]
[1727576398587,0.0021271,66050.0,66036.0,0.88931403]
[1727576399025,0.0021271,66050.0,66036.0,1.00361403]
[1727576400383,0.0021271,66050.0,66036.0,1.07130793]
[1727576400799,0.0021271,66050.0,66036.0,1.07129725]
[1727576403417,0.0021271,66050.0,66036.0,1.08694316]
[1727576403644,0.0021271,66050.0,66036.0,1.32279111]
[1727576403925,0.0021271,66050.0,66036.0,1.25510789]
[1727576404634,0.0021271,66050.0,66036.0,1.34508533]
[1727576405286,0.0021271,66050.0,66036.0,1.34507322]
[1727576405967,0.0021271,66050.0,66049.0,0.26604006]
[1727576406186,0.0021271,66050.0,66049.0,0.875538]
[1727576406414,0.0021271,66050.0,66049.0,0.88402461]
[1727576407747,0.0021271,66050.0,66049.0,0.88502461]
[1727576407954,0.0021271,66050.0,66049.0,0.88602461]
[1727576410553,0.0021271,66050.0,66049.0,0.89098358]
[1727576411209,0.0021271,66050.0,66049.0,0.88998358]
[1727576411508,0.0029551,66050.0,66049.0,0.89198358]
[1727576411677,0.0029551,66050.0,66049.0,0.89498358]
[1727576411883,0.0029551,66050.0,66049.0,0.78234552]
[1727576412119,0.0029551,66050.0,66049.0,0.89698358]
[1727576415931,0.0029551,66050.0,66049.0,0.89298358]
[1727576416144,0.0029551,66050.0,66049.0,0.90698358]
[1727576416575,0.0029551,66050.0,66049.0,0.89298358]
[1727576416797,0.0029551,66050.0,66049.0,0.90698358]
[1727576417207,0.0029551,66050.0,66049.0,0.62809861]
[1727576417208,0.1016551,66050.0,66049.0,0.62809861]
[1727576417678,0.1016551,66050.0,66049.0,0.63709861]
[1727576418099,0.1016551,66050.0,66049.0,0.62809861]
[1727576418541,0.1016551,66050.0,66049.0,0.64209861]
[1727576418765,0.1016551,66050.0,66049.0,0.62809861]
[1727576418984,0.1016551,66050.0,66049.0,0.61409861]
[1727576419269,0.1016551,66050.0,66049.0,0.63209861]
[1727576425236,0.1016551,66050.0,66049.0,0.48069661]
[1727576425659,0.25672822,66050.0,66049.0,0.48069661]
[1727576425886,0.38502043,66050.0,66049.0,0.48069661]
[1727576426096,0.38134731,66050.0,66049.0,0.48069661]
[1727576427048,0.3328551,66050.0,66049.0,0.47169661]
[1727576427263,0.3328551,66050.0,66049.0,0.46669661]
[1727576427706,0.44749316,66050.0,66049.0,0.47169661]
[1727576427936,0.55304768,66050.0,66049.0,0.37169661]
[1727576428176,0.45554768,66050.0,66049.0,0.27049661]
[1727576428419,0.45554768,66050.0,66049.0,0.26549661]
[1727576428420,0.5009566,66050.0,66049.0,0.26549661]
[1727576428644,0.47854768,66050.0,66049.0,0.26749661]
[1727576428865,0.47854768,66050.0,66049.0,0.25901]
[1727576429086,0.47854768,66050.0,66049.0,0.26149316]
[1727576430643,0.50228373,66050.0,66049.0,0.26149316]
[1727576431083,0.47954768,66050.0,66049.0,0.25301]
[1727576431504,0.47954768,66050.0,66049.0,0.26149316]
[1727576431923,0.47954768,66050.0,66049.0,0.27101104]
[1727576436564,0.2363551,66050.0,66049.0,0.27101104]
[1727576436794,0.2363551,66050.0,66049.0,0.25301]
[1727576436795,0.0837551,66050.0,66049.0,0.25301]
[1727576437034,0.0039551,66050.0,66049.0,0.46224806]
[1727576437259,0.0039551,66050.0,66049.0,0.63179454]
[1727576438391,0.0029551,66050.0,66049.0,0.63179454]
[1727576439324,0.0029551,66050.0,66049.0,0.63979454]
[1727576440005,0.0029551,66050.0,66049.0,0.63479454]
[1727576440444,0.0029551,66050.0,66049.0,0.63179454]
[1727576440670,0.0029551,66050.0,66049.0,0.64379454]
[1727576441534,0.0029551,66050.0,66049.0,0.65479454]
[1727576444855,0.0029551,66050.0,66049.0,0.73759454]
[1727576445748,0.0029551,66050.0,66049.0,0.72659454]
[1727576445969,0.0029551,66050.0,66049.0,0.73659454]
[1727576446189,0.0029551,66050.0,66049.0,0.72459454]
[1727576446406,0.0029551,66050.0,66049.0,0.73559454]
[1727576447834,0.0029551,66050.0,66049.0,0.73724854]
[1727576449158,0.0029551,66050.0,66049.0,0.89749545]
[1727576456040,0.0029551,66050.0,66049.0,0.90356245]
[1727576459829,0.0029551,66050.0,66049.0,0.94859417]
[1727576460043,0.0029551,66050.0,66049.0,0.90356245]
[1727576460891,0.0029551,66050.0,66049.0,0.89860348]
[1727576461326,0.0029551,66050.0,66049.0,0.90556245]
[1727576461986,0.0029551,66050.0,66049.0,0.90356245]
[1727576462666,0.0029551,66050.0,66049.0,0.89860348]
[1727576463118,0.0029551,66050.0,66049.0,0.90356245]
[1727576463554,0.0029551,66050.0,66049.0,0.90556245]
[1727576464013,0.0029551,66050.0,66049.0,0.90356245]
[1727576464251,0.0029551,66050.0,66049.0,0.90556245]
[1727576467486,0.0029551,66050.0,66049.0,0.90356245]
[1727576467703,0.0029551,66050.0,66049.0,0.90556245]
[1727576468783,0.0029551,66050.0,66049.0,0.90356245]
[1727576469013,0.0029551,66050.0,66049.0,0.90556245]
[1727576469286,0.0029551,66050.0,66049.0,0.90356245]
[1727576469539,0.0029551,66050.0,66049.0,0.90556245]
[1727576470253,0.0029551,66050.0,66049.0,0.90356245]
[1727576471680,0.0029551,66050.0,66049.0,0.90556245]
[1727576472183,0.0029551,66050.0,66049.0,0.90356245]
[1727576476947,0.0029551,66050.0,66049.0,0.97713296]
[1727576477186,0.0029551,66050.0,66049.0,0.93213406]
[1727576477663,0.0029551,66050.0,66049.0,0.94767918]
[1727576477930,0.0029551,66050.0,66049.0,0.99467808]
[1727576478429,0.0029551,66050.0,66049.0,0.99367808]
[1727576478669,0.0029551,66050.0,66049.0,1.01517753]
[1727576479667,0.0029551,66050.0,66049.0,1.25469735]
[1727576479901,0.0029551,66050.0,66049.0,1.187199]
[1727576480141,0.0029551,66050.0,66049.0,1.25478964]
[1727576480847,0.0029551,66050.0,66049.0,1.2771968]
[1727576481122,0.0029551,66050.0,66049.0,1.27744387]
[1727576481347,0.0029551,66050.0,66049.0,1.27944387]
[1727576481789,0.0029551,66050.0,66049.0,1.30198334]
[1727576482702,0.0029551,66050.0,66049.0,1.189286]
[1727576483824,0.0029551,66050.0,66049.0,1.187286]
[1727576484676,0.0029551,66050.0,66049.0,1.189286]
[1727576485789,0.0029551,66050.0,66049.0,1.1815383]
[1727576486247,0.0029551,66050.0,66049.0,1.06690024]
[1727576486501,0.0029551,66050.0,66049.0,1.20060696]
[1727576486743,0.0029551,66050.0,66049.0,1.08771233]
[1727576488605,0.0029551,66050.0,66049.0,1.16351233]
[1727576488866,0.0029551,66050.0,66049.0,1.29016299]
[1727576489340,0.0029551,66050.0,66049.0,1.15492618]
[1727576489594,0.0029551,66050.0,66049.0,1.15292618]
[1727576489807,0.0029551,66050.0,66049.0,1.12435457]
[1727576490027,0.0029551,66050.0,66049.0,1.25959138]
[1727576490680,0.0029551,66050.0,66049.0,1.12435457]
[1727576490912,0.0029551,66050.0,66049.0,1.12506279]
[1727576493299,0.0029551,66050.0,66049.0,1.12010382]
[1727576493518,0.0029551,66050.0,66049.0,1.12506279]
[1727576495243,0.0029551,66050.0,66049.0,1.12010382]
[1727576495478,0.0029551,66050.0,66049.0,1.12508851]
[1727576495913,0.0029551,66050.0,66049.0,1.12708851]
[1727576499432,0.0029551,66050.0,66049.0,1.46356557]
[1727576499638,0.0029551,66050.0,66049.0,1.12708851]
[1727576500065,0.0029551,66050.0,66049.0,1.46356557]
[1727576500909,0.0029551,66050.0,66049.0,1.46334583]
[1727576508419,0.0029551,66050.0,66049.0,1.48123447]
[1727576508632,0.0029551,66050.0,66049.0,1.46334583]
[1727576509526,0.0029551,66050.0,66049.0,1.56334583]
[1727576511521,0.0029551,66050.0,66049.0,1.56134583]
[1727576511940,0.0029551,66050.0,66049.0,1.56334583]
[1727576512385,0.0029551,66050.0,66049.0,1.56134583]
[1727576512818,0.0029551,66050.0,66049.0,1.56334583]
[1727576513924,0.0029551,66050.0,66049.0,1.58124208]
[1727576515960,0.0029551,66050.0,66049.0,1.58104742]
[1727576516404,0.0029551,66050.0,66049.0,1.5810586]
[1727576519564,0.0029551,66050.0,66049.0,1.56316235]
[1727576520682,0.0029551,66050.0,66049.0,0.78935072]
[1727576520894,0.0029551,66050.0,66049.0,1.14452786]
[1727576521076,0.0029551,66050.0,66049.0,1.04452786]
[1727576525326,0.0029551,66050.0,66049.0,1.26269033]
[1727576525554,0.0029551,66050.0,66049.0,1.12708683]
[1727576525779,0.0029551,66050.0,66049.0,1.12908683]
[1727576526250,0.0029551,66050.0,66049.0,1.12708683]
[1727576526467,0.000828,66052.0,66051.0,0.00495897]
[1727576526678,0.000828,66052.0,66051.0,1.43848845]
[1727576526895,0.000828,66052.0,66051.0,1.45093488]
[1727576527814,0.000828,66052.0,66051.0,1.45993488]
[1727576528929,0.000828,66052.0,66051.0,1.44805848]
[1727576529138,0.000828,66052.0,66051.0,1.58304045]
[1727576530292,0.000828,66052.0,66051.0,1.44752214]
[1727576532641,0.000828,66052.0,66051.0,1.44256317]
[1727576532899,0.000828,66052.0,66051.0,1.28727523]
[1727576533384,0.000828,66052.0,66051.0,1.40023516]
[1727576533844,0.000828,66052.0,66051.0,1.40323977]
[1727576537365,0.000828,66052.0,66051.0,1.29028922]
[1727576543718,0.000828,66052.0,66051.0,1.28903084]
[1727576545081,0.000828,66052.0,66051.0,1.44431878]
[1727576545292,0.000828,66052.0,66051.0,1.52797775]
[1727576546234,0.000828,66052.0,66051.0,1.66343405]
[1727576546449,0.000828,66052.0,66051.0,1.52797775]
[1727576546870,0.000828,66052.0,66051.0,1.40838072]
[1727576547086,0.000828,66052.0,66051.0,1.44431878]
[1727576553548,0.000828,66052.0,66051.0,1.44409629]
[1727576555722,0.000828,66052.0,66051.0,1.44407398]
[1727576563583,0.000828,66052.0,66051.0,1.44438304]
[1727576568556,0.000828,66052.0,66051.0,1.44420807]
[1727576569701,0.000828,66052.0,66051.0,1.32957001]
[1727576569944,0.000828,66052.0,66051.0,1.44916704]
[1727576570164,0.000827,66054.0,66053.0,0.151393]
[1727576570389,0.000827,66054.0,66053.0,1.29800858]
[1727576570612,0.000827,66054.0,66053.0,1.31244748]
[1727576571562,0.52186073,66078.0,66059.0,0.302758]
[1727576571776,0.22690658,66064.0,66063.0,0.4505978]
[1727576571992,0.22690658,66064.0,66063.0,1.2572657]
[1727576572247,0.000828,66065.0,66064.0,0.151368]
[1727576572486,0.000828,66065.0,66064.0,1.13859802]
[1727576572716,0.000828,66065.0,66064.0,1.06069649]
[1727576573914,0.000828,66065.0,66064.0,1.1283942]
[1727576574580,0.000828,66065.0,66064.0,1.1353942]
[1727576575412,0.000828,66065.0,66064.0,1.1423942]
[1727576575879,0.000828,66065.0,66064.0,0.90074656]
[1727576576327,0.000828,66065.0,66064.0,1.14181327]
[1727576576547,0.000828,66065.0,66064.0,0.83304885]
[1727576582593,0.000828,66065.0,66064.0,0.94768691]
[1727576583909,0.00450112,66065.0,66064.0,0.94768691]
[1727576585006,0.000828,66065.0,66064.0,0.94768691]
[1727576586131,0.000828,66065.0,66064.0,0.83304885]
[1727576586363,0.000828,66065.0,66064.0,0.94768691]
[1727576586594,0.00928091,66065.0,66064.0,0.94768691]
[1727576587048,0.00928091,66065.0,66064.0,0.79631891]
[1727576587276,0.000828,66065.0,66064.0,0.79631891]
[1727576587523,0.000828,66065.0,66064.0,0.94768691]
[1727576592340,0.000828,66065.0,66064.0,1.04338691]
[1727576592812,0.000828,66065.0,66064.0,1.08852882]
[1727576593518,0.000828,66065.0,66064.0,1.04338691]
[1727576593734,0.000828,66065.0,66064.0,1.08852882]
[1727576595149,0.000828,66065.0,66064.0,1.02938691]
[1727576595374,0.000828,66065.0,66064.0,1.03538691]
[1727576595600,0.000828,66065.0,66064.0,1.04138691]
[1727576595812,0.000828,66065.0,66064.0,1.08054661]
[1727576596329,0.000828,66065.0,66064.0,1.08754661]
[1727576597239,0.000828,66065.0,66064.0,1.08154661]
[1727576597739,0.000828,66065.0,66064.0,1.08854661]
[1727576601861,0.000828,66065.0,66064.0,1.04338691]
[1727576602072,0.00928091,66065.0,66064.0,0.94768691]
[1727576602282,0.000828,66065.0,66064.0,0.94768691]
[1727576609072,0.000828,66065.0,66064.0,0.83304885]
[1727576609302,0.000828,66065.0,66064.0,0.94768691]
[1727576614212,0.000828,66065.0,66064.0,0.94068691]
[1727576614419,0.000828,66065.0,66064.0,0.93368691]
[1727576614641,0.000828,66065.0,66064.0,0.93768691]
[1727576614865,0.000828,66065.0,66064.0,0.94168691]
[1727576615116,0.000828,66065.0,66064.0,0.93368691]
[1727576615570,0.000828,66065.0,66064.0,0.93768691]
[1727576616476,0.000828,66065.0,66064.0,1.03148691]
[1727576617158,0.000828,66065.0,66064.0,1.03548691]
[1727576617838,0.000828,66065.0,66064.0,1.03148691]
[1727576618022,0.000828,66065.0,66064.0,1.03348691]
[1727576618474,0.000828,66065.0,66064.0,1.03948691]
[1727576620821,0.000828,66065.0,66064.0,1.08467443]
[1727576621256,0.000828,66065.0,66064.0,1.03948691]
[1727576621691,0.000828,66065.0,66064.0,1.08470456]
[1727576623099,0.000828,66065.0,66064.0,0.9700665]
[1727576623307,0.000828,66065.0,66064.0,1.08470456]
[1727576626164,0.000828,66065.0,66064.0,1.07870368]
[1727576626391,0.000828,66065.0,66064.0,1.07270368]
[1727576626591,0.000828,66065.0,66064.0,1.07670368]
[1727576627039,0.000828,66065.0,66064.0,1.07270368]
[1727576627450,0.000828,66065.0,66064.0,1.07670368]
[1727576627854,0.000828,66065.0,66064.0,1.07270368]
[1727576628052,0.000828,66065.0,66064.0,1.07670368]
[1727576628266,0.000828,66065.0,66064.0,1.07470368]
[1727576628676,0.000828,66065.0,66064.0,1.07670368]
[1727576628882,0.000828,66065.0,66064.0,1.07470368]
[1727576629293,0.000828,66065.0,66064.0,1.07570368]
[1727576629494,0.000828,66065.0,66064.0,1.07270368]
[1727576629699,0.000828,66065.0,66064.0,1.07370368]
[1727576629906,0.000828,66065.0,66064.0,1.07570368]
[1727576630141,0.000828,66065.0,66064.0,1.07470368]
[1727576630610,0.000828,66065.0,66064.0,1.07570368]
[1727576631137,0.000828,66065.0,66064.0,1.07370441]
[1727576631361,0.000828,66065.0,66064.0,1.07470441]
[1727576636152,0.000828,66065.0,66064.0,1.07370441]
[1727576637292,0.000828,66065.0,66064.0,1.07470441]
[1727576637704,0.000828,66065.0,66064.0,1.07370441]
[1727576637932,0.000828,66065.0,66064.0,1.07870441]
[1727576638151,0.000828,66065.0,66064.0,1.07770441]
[1727576638605,0.000828,66065.0,66064.0,1.07870441]
[1727576638830,0.000828,66065.0,66064.0,1.07770441]
[1727576639029,0.000828,66065.0,66064.0,1.08270441]
[1727576639263,0.000828,66065.0,66064.0,1.07770441]
[1727576639506,0.000828,66065.0,66064.0,1.07270441]
[1727576639752,0.000828,66065.0,66064.0,1.08270441]
[1727576640636,0.000828,66065.0,66064.0,1.07770377]
[1727576641046,0.000828,66065.0,66064.0,1.08270377]
[1727576641926,0.000828,66065.0,66064.0,1.07770377]
[1727576642131,0.000828,66065.0,66064.0,1.08270377]
[1727576642358,0.000828,66065.0,66064.0,1.07770377]
[1727576642587,0.000828,66065.0,66064.0,1.07270377]
[1727576642812,0.000828,66065.0,66064.0,1.07970377]
[1727576643270,0.000828,66065.0,66064.0,1.08670377]
[1727576645500,0.000828,66065.0,66064.0,1.04148691]
[1727576646415,0.000828,66065.0,66064.0,1.35220202]
[1727576646856,0.000828,66065.0,66064.0,1.35221468]
[1727576649198,0.000828,66065.0,66064.0,1.28438939]
[1727576649911,0.000828,66065.0,66064.0,1.28422991]
[1727576650175,0.000828,66065.0,66064.0,0.68168085]
[1727576650176,0.232694,66065.0,66064.0,0.68168085]
[1727576650422,0.30637054,66065.0,66064.0,0.68168085]
[1727576651389,0.30637054,66065.0,66064.0,0.66231]
[1727576651867,0.30637054,66065.0,66064.0,0.66760114]
[1727576652091,0.30637054,66065.0,66064.0,0.66860114]
[1727576652791,0.30637054,66065.0,66064.0,0.66760114]
[1727576653022,0.31037054,66065.0,66064.0,0.66760114]
[1727576653491,0.30637054,66065.0,66064.0,0.66760114]
[1727576654422,0.23636712,66065.0,66064.0,0.66760114]
[1727576654638,0.152194,66065.0,66064.0,0.66760114]
[1727576655328,0.157194,66065.0,66064.0,0.66760114]
[1727576655786,0.152194,66065.0,66064.0,0.66760114]
[1727576656010,0.15586712,66065.0,66064.0,0.66760114]
[1727576656235,0.24215033,66065.0,66064.0,0.66760114]
[1727576658489,0.2658789,66065.0,66064.0,0.66760114]
[1727576658935,0.17792257,66065.0,66064.0,0.66760114]
[1727576660295,0.02655657,66065.0,66064.0,0.66760114]
[1727576660543,0.02655657,66065.0,66064.0,0.7822392]
[1727576660770,0.002828,66065.0,66064.0,0.8804392]
[1727576661703,0.000828,66065.0,66064.0,0.8804392]
[1727576662164,0.002828,66065.0,66064.0,1.0328072]
[1727576662621,0.000828,66065.0,66064.0,1.0328072]
[1727576662872,0.000828,66065.0,66064.0,1.0348072]
[1727576667702,0.231894,66065.0,66064.0,0.67060114]
[1727576667942,0.000828,66065.0,66064.0,0.67060114]
[1727576668400,0.000828,66065.0,66064.0,0.76690114]
[1727576668627,0.000828,66065.0,66064.0,0.91626914]
[1727576668839,0.000828,66065.0,66064.0,0.99386914]
[1727576669065,0.002828,66065.0,66064.0,0.99386914]
[1727576669510,0.000828,66065.0,66064.0,0.84250114]
[1727576669973,0.002828,66065.0,66064.0,0.99386914]
[1727576672020,0.002828,66065.0,66064.0,0.99686914]
[1727576672231,0.000828,66065.0,66064.0,0.84550114]
[1727576672654,0.002828,66065.0,66064.0,0.84550114]
[1727576673072,0.000828,66065.0,66064.0,0.84550114]
[1727576673511,0.000828,66065.0,66064.0,0.84950114]
[1727576680327,0.000828,66065.0,66064.0,1.00086914]
[1727576680523,0.000828,66065.0,66064.0,0.84950114]
[1727576681227,0.000828,66065.0,66064.0,1.00086914]
[1727576681437,0.000828,66065.0,66064.0,0.84950114]
[1727576682115,0.000828,66065.0,66064.0,1.00086914]
[1727576684135,0.000828,66065.0,66064.0,0.84950114]
[1727576684616,0.000828,66065.0,66064.0,0.9641392]
[1727576685476,0.000828,66065.0,66064.0,1.1155072]
[1727576691964,0.000828,66065.0,66064.0,1.00086914]
[1727576692195,0.000828,66065.0,66064.0,1.1155072]
[1727576698427,0.000828,66065.0,66064.0,1.0955072]
[1727576698889,0.000828,66065.0,66064.0,1.0925072]
[1727576699099,0.000828,66065.0,66064.0,1.0905072]
[1727576699569,0.000828,66065.0,66064.0,1.0915072]
[1727576699800,0.000828,66065.0,66064.0,1.0935072]
[1727576700250,0.000828,66065.0,66064.0,1.0905072]
[1727576700480,0.000828,66065.0,66064.0,1.0935072]
[1727576702451,0.000828,66065.0,66064.0,1.0915072]
[1727576703121,0.000828,66065.0,66064.0,1.0885072]
[1727576703334,0.000828,66065.0,66064.0,1.0895072]
[1727576703821,0.000828,66065.0,66064.0,1.0885072]
[1727576704038,0.000828,66065.0,66064.0,1.0905072]
[1727576704263,0.002828,66065.0,66064.0,1.0905072]
[1727576704690,0.000828,66065.0,66064.0,1.0905072]
[1727576705115,0.000828,66065.0,66064.0,1.0935072]
[1727576705748,0.000828,66065.0,66064.0,1.0915072]
[1727576705974,0.000828,66065.0,66064.0,1.0945072]
[1727576706463,0.000828,66065.0,66064.0,1.0915072]
[1727576706714,0.000828,66065.0,66064.0,1.0955072]
[1727576707181,0.000828,66065.0,66064.0,1.0885072]
[1727576707637,0.000828,66065.0,66064.0,1.0935072]
[1727576708965,0.000828,66065.0,66064.0,1.0915072]
[1727576709180,0.000828,66065.0,66064.0,1.0935072]
[1727576709598,0.000828,66065.0,66064.0,1.0905072]
[1727576709814,0.000828,66065.0,66064.0,1.0935072]
[1727576713660,0.000828,66065.0,66064.0,1.0905072]
[1727576714123,0.000828,66065.0,66064.0,1.0885072]
[1727576715703,0.000828,66065.0,66064.0,1.0901632]
[1727576717448,0.000828,66065.0,66064.0,1.0971632]
[1727576717662,0.000828,66065.0,66064.0,1.0185632]
[1727576718947,0.000828,66065.0,66064.0,0.75255714]
[1727576719447,0.152194,66065.0,66064.0,0.65625714]
[1727576719665,0.36426118,66065.0,66064.0,0.65625714]
[1727576720107,0.36426118,66065.0,66064.0,0.643966]
[1727576720320,0.36426118,66065.0,66064.0,0.636966]
[1727576720547,0.36426118,66065.0,66064.0,0.64956252]
[1727576720787,0.36526118,66065.0,66064.0,0.64956252]
[1727576722476,0.36526118,66065.0,66064.0,0.65056252]
[1727576722704,0.36426118,66065.0,66064.0,0.637966]
[1727576722950,0.36426118,66065.0,66064.0,0.65056252]
[1727576723687,0.37026118,66065.0,66064.0,0.65156252]
[1727576725062,0.47526118,66065.0,66064.0,0.638966]
[1727576725301,0.48526118,66065.0,66064.0,0.638966]
[1727576725535,0.48526118,66065.0,66064.0,0.65162575]
[1727576725775,0.48726118,66065.0,66064.0,0.65162575]
[1727576726000,0.48726118,66065.0,66064.0,0.65062575]
[1727576726001,0.61759911,66065.0,66064.0,0.65062575]
[1727576726214,0.62359911,66065.0,66064.0,0.65062575]
[1727576726429,0.51099369,66065.0,66064.0,0.65062575]
[1727576726646,0.51099369,66065.0,66064.0,0.65162575]
[1727576726856,0.50499369,66065.0,66064.0,0.01431575]
[1727576727121,0.50499369,66065.0,66064.0,0.01631575]
[1727576727122,0.50899369,66065.0,66064.0,0.01631575]
[1727576727328,0.50899369,66065.0,66064.0,0.003656]
[1727576727555,0.51099369,66065.0,66064.0,0.003656]
[1727576728253,0.62439916,66065.0,66064.0,0.003656]
[1727576729240,0.6016865,66065.0,66064.0,0.003656]
[1727576729873,0.51099369,66065.0,66064.0,0.003656]
[1727576731465,0.64733162,66065.0,66064.0,0.003656]
[1727576731720,0.64733162,66065.0,66064.0,1e-06]
[1727576731985,0.64733162,66065.0,66057.0,0.001656]
[1727576731986,0.368882,66058.0,66057.0,0.001656]
[1727576732205,0.48352006,66058.0,66057.0,0.001656]
[1727576732903,0.368882,66058.0,66057.0,0.001656]
[1727576733353,0.48352006,66058.0,66057.0,0.001656]
[1727576733590,0.49752006,66058.0,66057.0,0.001656]
[1727576733836,0.5950384,66058.0,66057.0,0.001656]
[1727576734049,0.70967646,66058.0,66057.0,0.001656]
[1727576734303,0.58637579,66058.0,66057.0,0.001656]
[1727576734565,0.48497689,66058.0,66057.0,0.001656]
[1727576734798,0.48697689,66058.0,66057.0,0.001656]
[1727576735027,0.47297689,66058.0,66057.0,0.001656]
[1727576735266,0.48697689,66058.0,66057.0,0.001656]
[1727576735710,0.53371239,66058.0,66057.0,0.001656]
[1727576735935,0.54771239,66058.0,66057.0,0.001656]
[1727576737997,0.54571239,66058.0,66057.0,0.001656]
[1727576738227,0.54771239,66058.0,66057.0,0.001656]
[1727576738900,0.53371239,66058.0,66057.0,0.001656]
[1727576739121,0.51971239,66058.0,66057.0,0.001656]
[1727576739333,0.54771239,66058.0,66057.0,0.001656]
[1727576739761,0.51971239,66058.0,66057.0,0.001656]
[1727576740002,0.54571239,66058.0,66057.0,0.001656]
[1727576743864,0.54771239,66058.0,66057.0,0.001656]
[1727576745212,0.52397689,66058.0,66057.0,0.001656]
[1727576746748,0.52197689,66058.0,66057.0,0.001656]
[1727576747196,0.63661495,66058.0,66057.0,0.001656]
[1727576747440,0.55911495,66058.0,66057.0,0.001656]
[1727576747696,0.54911495,66058.0,66057.0,0.001656]
[1727576747925,0.43447689,66058.0,66057.0,0.001656]
[1727576748144,0.179382,66058.0,66057.0,0.001656]
[1727576748381,0.179382,66058.0,66057.0,0.098056]
[1727576748599,0.179382,66058.0,66057.0,0.11103705]
[1727576748833,0.179382,66058.0,66057.0,0.22567511]
[1727576749306,0.179382,66058.0,66057.0,0.11103705]
[1727576749307,0.24624478,66058.0,66057.0,0.11103705]
[1727576749517,0.34624478,66058.0,66057.0,0.11103705]